bitfinex/quotes_SOLUSD_20240717
["timestamp","ask_amount","ask_price","bid_price","bid_amount"]
[1721231585578,20.0,158.43,158.35,6.3149]
[1721231585764,20.0,158.43,158.31,0.17]
[1721231585765,6.15263375,158.47,158.38,6.3135]
[1721231585967,6.3122,158.43,158.37,22.0991]
[1721231586172,42.29,158.48,158.37,15.7849]
[1721231586489,6.3126,158.42,158.37,15.7849]
[1721231586668,6.3126,158.42,158.37,22.0991]
[1721231586861,15.777,158.46,158.37,15.7849]
[1721231587189,15.777,158.46,158.37,22.0991]
[1721231587367,20.0,158.45,158.36,6.3146]
[1721231587561,6.3131,158.4,158.34,22.1034]
[1721231587881,6.3139,158.39,158.34,15.7883]
[1721231588059,6.3131,158.4,158.34,15.7883]
[1721231588259,6.314,158.38,158.33,6.3156]
[1721231588468,15.7797,158.44,158.31,15.7914]
[1721231588781,20.0,158.43,158.31,15.7914]
[1721231588986,6.3147,158.36,158.31,22.1077]
[1721231589280,15.7839,158.39,158.28,22.1117]
[1721231589456,15.7839,158.39,158.28,15.7942]
[1721231589457,20.0,158.38,158.28,15.7942]
[1721231589662,6.3146,158.37,158.31,6.3163]
[1721231589962,26.3147,158.36,158.31,6.3163]
[1721231590471,26.3147,158.36,158.3,22.1088]
[1721231590696,6.3159,158.33,158.27,38.2883]
[1721231590865,6.3164,158.32,158.27,44.6064]
[1721231591071,6.3164,158.32,158.27,22.1134]
[1721231591383,6.3158,158.34,158.29,6.3174]
[1721231591692,6.3161,158.33,158.28,6.3178]
[1721231591989,20.0,158.36,158.29,17.05654154]
[1721231592170,20.0,158.39,158.31,6.3164]
[1721231592365,6.3144,158.37,158.32,1.26311988]
[1721231592564,26.3138,158.39,158.33,1.26311988]
[1721231592968,26.3138,158.39,158.33,7.57871988]
[1721231593168,6.3134,158.4,158.33,17.05211988]
[1721231593469,14.81506517,158.46,158.34,6.3152]
[1721231593674,6.3132,158.4,158.35,22.1022]
[1721231594079,6.3132,158.4,158.35,15.7871]
[1721231594276,6.314,158.38,158.33,6.3158]
[1721231594673,6.3139,158.38,158.33,6.3156]
[1721231595272,20.0,158.37,158.29,15.7932]
[1721231595481,20.0,158.38,158.3,6.3171]
[1721231595768,6.3155,158.34,158.29,15.7932]
[1721231596298,6.3152,158.35,158.3,6.3171]
[1721231597578,20.0,158.38,158.29,15.7932]
[1721231597985,6.3152,158.35,158.3,6.317]
[1721231598187,20.0,158.38,158.22,48.1724]
[1721231598188,20.0,158.38,158.31,17.05448373]
[1721231598499,6.3142,158.38,158.33,6.3155]
[1721231598685,20.0,158.37,158.34,6.3152]
[1721231598892,6.3131,158.4,158.35,7.57784251]
[1721231599066,6.3131,158.4,158.36,1.26271441]
[1721231599269,6.3135,158.39,158.34,6.3153]
[1721231599484,6.3139,158.38,158.34,1.26276593]
[1721231599686,6.3151,158.35,158.3,22.1092]
[1721231599893,6.3148,158.36,158.31,6.3167]
[1721231600273,6.3151,158.35,158.3,22.1094]
[1721231602387,6.3127,158.41,158.36,6.3146]
[1721231602577,6.3127,158.41,158.35,15.7876]
[1721231602578,6.3124,158.42,158.37,6.3142]
[1721231602774,15.7769,158.46,158.35,15.7876]
[1721231602994,42.29,158.48,158.32,6.0828]
[1721231603196,6.3155,158.34,158.29,6.3171]
[1721231603499,6.3152,158.35,158.3,6.3169]
[1721231603792,6.3155,158.34,158.29,15.7935]
[1721231603989,15.7844,158.39,158.3,1.26309579]
[1721231604197,6.315,158.36,158.3,1.26309579]
[1721231604493,20.0,158.38,158.26,15.8646]
[1721231604694,15.786,158.37,158.25,15.7975]
[1721231604883,6.3159,158.33,158.27,6.3182]
[1721231605284,6.3147,158.36,158.24,10.0]
[1721231605595,20.0,158.38,158.23,56.6816]
[1721231605596,20.0,158.35,158.23,56.6816]
[1721231605795,20.0,158.38,158.24,64.33]
[1721231606296,20.0,158.38,158.24,45.34]
[1721231606797,20.0,158.38,158.28,15.7943]
[1721231607103,6.3132,158.4,158.32,15.79]
[1721231607318,6.3132,158.4,158.33,1.26273285]
[1721231607800,6.5361,158.43,158.35,6.3148]
[1721231608011,6.5361,158.43,158.36,1.26271662]
[1721231608196,6.3127,158.41,158.36,22.1004]
[1721231608382,6.3127,158.41,158.36,15.7858]
[1721231609017,6.3132,158.4,158.36,15.7858]
[1721231609194,6.3132,158.4,158.34,6.3154]
[1721231609705,6.3136,158.39,158.34,6.3154]
[1721231610006,6.3132,158.4,158.35,1.26269949]
[1721231610182,6.3136,158.39,158.33,22.105]
[1721231610686,6.314,158.38,158.33,22.105]
[1721231610892,6.3134,158.4,158.34,1.26275846]
[1721231611299,6.3135,158.39,158.34,7.57815846]
[1721231611511,6.3132,158.4,158.35,6.3151]
[1721231611678,6.3137,158.39,158.33,22.1048]
[1721231611886,6.3142,158.38,158.33,22.1048]
[1721231612111,6.3142,158.38,158.31,15.8429]
[1721231612112,47.1701,158.45,158.31,15.8429]
[1721231612315,6.3146,158.37,158.32,6.3159]
[1721231612616,20.0,158.44,158.31,31.6337]
[1721231613225,6.3147,158.36,158.31,37.9501]
[1721231613414,6.3144,158.37,158.32,6.3163]
[1721231614102,6.3138,158.39,158.34,6.3154]
[1721231614313,6.3138,158.39,158.35,1.26272523]
[1721231614622,6.3138,158.39,158.36,1.26272589]
[1721231615201,15.7803,158.43,158.36,1.26272589]
[1721231615396,6.0145,158.47,158.33,6.4576]
[1721231615611,12.37736452,158.49,158.34,75.59259064]
[1721231615612,6.5449017,158.48,158.34,75.59259064]
[1721231615824,6.3099,158.48,158.42,6.3122]
[1721231615999,6.3104,158.47,158.43,1.26217417]
[1721231616203,6.0785,158.51,158.43,1.26217417]
[1721231616993,6.3114,158.45,158.38,15.7848]
[1721231617308,15.7735,158.5,158.39,45.34]
[1721231617724,15.7735,158.5,158.4,6.3129]
[1721231617895,15.7735,158.5,158.41,7.57444907]
[1721231617896,6.3104,158.47,158.41,7.57444907]
[1721231618299,6.31,158.48,158.42,6.3121]
[1721231618601,6.3103,158.47,158.43,1.26209392]
[1721231618919,6.3103,158.47,158.43,1.2620952]
[1721231619105,15.7735,158.5,158.4,15.7823]
[1721231619300,42.29,158.52,158.43,6.3116]
[1721231619604,6.3113,158.45,158.39,51.4831]
[1721231620002,6.3106,158.47,158.41,6.3126]
[1721231620204,6.311,158.46,158.4,6.313]
[1721231620425,6.311,158.46,158.41,6.3127]
[1721231620621,15.7725,158.51,158.4,6.313]
[1721231620901,6.3127,158.42,158.34,15.7879]
[1721231621097,6.3127,158.42,158.37,6.314]
[1721231621303,42.29,158.47,158.36,15.7861]
[1721231621522,20.0,158.46,158.36,15.7861]
[1721231621821,6.3131,158.4,158.35,6.315]
[1721231622026,6.3136,158.39,158.33,28.5624]
[1721231622332,34.51,158.43,158.34,6.3154]
[1721231622507,6.3132,158.4,158.34,6.3154]
[1721231622710,34.51,158.43,158.34,6.3154]
[1721231623009,6.3138,158.39,158.33,22.2469]
[1721231623328,20.0,158.42,158.33,28.5626]
[1721231623329,6.314,158.38,158.33,28.5626]
[1721231623622,20.0,158.42,158.33,22.2469]
[1721231623824,8.43016517,158.5,158.44,6.3114]
[1721231624125,6.3098,158.49,158.42,15.7805]
[1721231624310,6.3102,158.48,158.42,22.0927]
[1721231624622,6.3107,158.46,158.41,6.3123]
[1721231624823,15.7735,158.5,158.42,6.3123]
[1721231625129,6.311,158.46,158.41,6.3127]
[1721231625329,6.311,158.46,158.4,6.313]
[1721231625835,57.9035,158.5,158.4,6.3127]
[1721231626126,6.3114,158.45,158.39,22.0968]
[1721231626710,6.3116,158.44,158.39,22.0968]
[1721231627106,57.9035,158.5,158.39,15.7834]
[1721231627310,57.9035,158.5,158.4,1.26238393]
[1721231627516,6.3108,158.46,158.41,6.3123]
[1721231627730,6.3103,158.48,158.42,6.3123]
[1721231628252,20.0,158.47,158.4,31.5646]
[1721231628543,20.0,158.47,158.43,15.7789]
[1721231628714,6.3096,158.49,158.44,6.3115]
[1721231628909,6.3092,158.5,158.45,6.3108]
[1721231629111,6.3092,158.5,158.45,7.572775]
[1721231629318,6.3091,158.5,158.45,6.3111]
[1721231629513,6.3097,158.49,158.43,22.0908]
[1721231629939,6.31,158.48,158.43,22.0908]
[1721231630147,31.5408,158.53,158.42,1.26202432]
[1721231630344,62.13,158.52,158.4,22.0953]
[1721231630531,15.7734,158.5,158.4,17.04460946]
[1721231630721,6.3108,158.46,158.41,6.3123]
[1721231631023,6.3116,158.44,158.4,15.7823]
[1721231631217,6.3108,158.46,158.41,7.5750343]
[1721231631714,6.3104,158.47,158.42,6.3121]
[1721231632030,26.3107,158.46,158.42,1.26225342]
[1721231632347,6.3111,158.45,158.4,22.0951]
[1721231632725,20.0,158.46,158.42,6.3122]
[1721231632926,20.0,158.46,158.43,1.26216101]
[1721231633255,6.3104,158.47,158.42,6.3122]
[1721231633431,20.0,158.46,158.4,15.7823]
[1721231633631,6.3104,158.47,158.42,6.3121]
[1721231633931,6.3113,158.45,158.4,15.7823]
[1721231634136,6.3113,158.45,158.4,22.0953]
[1721231634449,6.3127,158.41,158.37,15.7851]
[1721231634748,15.7786,158.45,158.34,15.7886]
[1721231634941,15.7804,158.43,158.34,15.7886]
[1721231635249,15.7804,158.43,158.3,6.2233]
[1721231635250,20.0,158.42,158.3,6.2233]
[1721231635449,15.7843,158.39,158.3,6.2233]
[1721231635649,6.3154,158.35,158.3,12.5403]
[1721231636122,6.317,158.31,158.26,6.2233]
[1721231636323,6.317,158.31,158.26,12.5419]
[1721231636949,6.1444,158.38,158.25,15.7974]
[1721231636950,6.3172,158.3,158.25,15.7974]
[1721231637329,15.7884,158.35,158.25,17.06093563]
[1721231637739,20.0,158.34,158.25,17.06093563]
[1721231638052,20.0,158.34,158.25,15.7974]
[1721231638253,6.3171,158.3,158.25,22.1163]
[1721231638551,6.3168,158.31,158.25,22.1163]
[1721231638734,26.3171,158.3,158.25,15.7974]
[1721231639102,20.0,158.3,158.26,6.3186]
[1721231639263,15.7884,158.35,158.25,22.1164]
[1721231639264,26.317,158.31,158.25,22.1164]
[1721231639928,20.0,158.31,158.27,6.3183]
[1721231640132,6.3168,158.31,158.26,6.3186]
[1721231640328,20.0,158.3,158.27,6.3179]
[1721231640551,20.0,158.3,158.26,6.3186]
[1721231640735,20.0,158.3,158.27,6.3182]
[1721231640935,6.3151,158.35,158.28,1.26341112]
[1721231641235,6.3167,158.31,158.26,6.3186]
[1721231641443,6.3163,158.32,158.27,6.3182]
[1721231641635,6.3159,158.33,158.28,1.26339458]
[1721231641832,6.3163,158.32,158.26,15.7964]
[1721231642046,6.3163,158.32,158.27,6.3182]
[1721231642467,6.316,158.33,158.27,6.3182]
[1721231642674,6.316,158.33,158.28,6.3177]
[1721231643270,4.52497713,158.41,158.3,6.5478]
[1721231643462,6.3111,158.45,158.38,6.3139]
[1721231643661,6.3115,158.44,158.38,6.3139]
[1721231643870,6.3296,158.48,158.38,1.26247172]
[1721231644069,6.3125,158.42,158.34,22.1005]
[1721231644255,15.7766,158.47,158.34,22.1005]
[1721231644256,34.5,158.46,158.34,15.7852]
[1721231644670,6.3135,158.4,158.32,22.1063]
[1721231644969,6.3135,158.39,158.32,15.7903]
[1721231645172,34.5,158.43,158.3,12.8648]
[1721231645371,34.5,158.43,158.28,15.7943]
[1721231645372,6.3153,158.35,158.28,15.7943]
[1721231645578,6.316,158.33,158.28,15.7943]
[1721231645760,34.5,158.37,158.28,15.7943]
[1721231645963,26.3151,158.36,158.28,22.1122]
[1721231646165,26.3151,158.36,158.3,6.3169]
[1721231646469,20.0,158.36,158.28,15.7943]
[1721231646665,20.0,158.39,158.28,22.1118]
[1721231646974,6.3151,158.35,158.28,22.1118]
[1721231647170,6.3145,158.37,158.28,15.7943]
[1721231647364,20.0,158.36,158.31,15.7915]
[1721231647557,20.0,158.36,158.31,22.1081]
[1721231649073,20.0,158.36,158.32,7.57930417]
[1721231649270,26.3147,158.36,158.31,15.7915]
[1721231649475,6.3156,158.34,158.26,15.7959]
[1721231650079,20.0,158.36,158.29,6.3174]
[1721231650378,50.7168,158.4,158.27,6.3182]
[1721231650379,6.3162,158.33,158.27,6.3182]
[1721231650876,6.3155,158.34,158.26,15.7959]
[1721231651078,6.3159,158.33,158.28,6.3178]
[1721231651286,6.3154,158.35,158.28,6.3178]
[1721231651487,20.0,158.34,158.28,6.3178]
[1721231651669,6.3163,158.32,158.26,22.1142]
[1721231651980,26.3168,158.31,158.26,15.7959]
[1721231652279,6.3171,158.3,158.25,6.3191]
[1721231652579,20.0,158.3,158.26,6.3187]
[1721231653266,26.3174,158.3,158.23,22.119]
[1721231653580,6.3174,158.3,158.23,22.119]
[1721231653785,20.0,158.31,158.23,15.7995]
[1721231654153,20.0,158.33,158.23,15.7995]
[1721231654359,6.317,158.31,158.25,6.319]
[1721231654570,20.0,158.3,158.25,6.319]
[1721231654770,26.3172,158.3,158.25,6.319]
[1721231655077,20.0,158.3,158.26,6.3186]
[1721231655273,20.0,158.31,158.26,6.3186]
[1721231655478,20.0,158.31,158.27,1.26351772]
[1721231655782,26.3168,158.31,158.26,6.3186]
[1721231657177,6.3171,158.3,158.23,15.7995]
[1721231657475,6.3171,158.3,158.24,1.2634688]
[1721231658092,6.3171,158.3,158.23,15.7995]
[1721231658504,20.0,158.31,158.27,6.3181]
[1721231658678,20.0,158.33,158.27,6.3181]
[1721231658877,34.5,158.34,158.28,1.26347026]
[1721231658878,6.3156,158.34,158.28,1.26347026]
[1721231659093,34.5,158.37,158.29,15.7931]
[1721231659302,350.254616,158.48,158.23,10.0]
[1721231659303,6.6028,158.42,158.33,6.3158]
[1721231659606,41.1028,158.42,158.32,22.1064]
[1721231659977,6.3149,158.36,158.3,6.3168]
[1721231660177,6.3152,158.35,158.3,6.3168]
[1721231660493,15.7825,158.41,158.29,15.7934]
[1721231660494,6.3146,158.37,158.29,15.7934]
[1721231660699,6.3146,158.37,158.32,6.3163]
[1721231660992,15.7825,158.41,158.29,22.1105]
[1721231661192,6.3151,158.35,158.3,6.3169]
[1721231661393,15.7825,158.41,158.31,6.3166]
[1721231661695,15.7825,158.41,158.29,15.7934]
[1721231661895,6.3163,158.32,158.27,6.3183]
[1721231662097,6.3159,158.33,158.27,6.3183]
[1721231662299,6.3156,158.34,158.28,6.3177]
[1721231662488,6.3159,158.33,158.28,6.3177]
[1721231662792,6.3159,158.33,158.29,1.26331899]
[1721231662997,6.3156,158.34,158.28,6.3177]
[1721231663196,50.2847,158.39,158.28,6.3177]
[1721231663197,6.3159,158.33,158.28,6.3177]
[1721231663497,15.7881,158.35,158.25,15.797]
[1721231663701,20.0,158.34,158.25,15.797]
[1721231663997,6.3174,158.3,158.25,22.116]
[1721231664179,20.0,158.34,158.27,15.7949]
[1721231664386,20.0,158.35,158.22,32.86456364]
[1721231664596,6.3158,158.34,158.28,6.3176]
[1721231664892,20.0,158.33,158.28,6.3176]
[1721231665214,20.0,158.33,158.29,6.3174]
[1721231665512,20.0,158.33,158.3,7.58023433]
[1721231665684,20.0,158.34,158.3,7.58023433]
[1721231666013,6.3159,158.33,158.28,22.1117]
[1721231666183,20.0,158.32,158.28,22.1117]
[1721231666500,6.3169,158.31,158.29,1.26326272]
[1721231666692,20.0,158.32,158.26,1.2632899]
[1721231666995,6.3167,158.31,158.26,22.1149]
[1721231667390,6.3164,158.32,158.27,6.3183]
[1721231667783,6.3164,158.32,158.26,22.1148]
[1721231667986,20.0,158.35,158.26,15.7963]
[1721231668191,6.3176,158.29,158.24,6.3194]
[1721231668876,6.3171,158.3,158.25,6.3189]
[1721231669481,20.0,158.35,158.27,6.3181]
[1721231669781,6.3162,158.33,158.28,6.3178]
[1721231669988,20.0,158.32,158.28,6.3178]
[1721231670189,20.0,158.32,158.29,1.26341631]
[1721231670588,20.0,158.32,158.27,15.7953]
[1721231670589,20.0,158.32,158.3,1.26332533]
[1721231670785,20.0,158.35,158.29,15.7933]
[1721231670985,20.0,158.38,158.3,1.26316742]
[1721231671194,34.5,158.33,158.21,6.4728]
[1721231671503,20.0,158.32,158.27,6.3181]
[1721231671696,20.0,158.32,158.26,22.1149]
[1721231671902,20.0,158.35,158.26,22.1149]
[1721231672203,6.316,158.33,158.28,6.3178]
[1721231672401,50.2869,158.36,158.27,7.58155227]
[1721231672402,20.0,158.32,158.27,7.58155227]
[1721231672705,20.0,158.32,158.28,6.3177]
[1721231673022,34.5,158.39,158.26,31.593]
[1721231673184,34.5,158.39,158.3,15.7921]
[1721231673595,6.3143,158.37,158.31,7.57946017]
[1721231674097,41.1028,158.42,158.32,15.7899]
[1721231674411,6.3138,158.39,158.34,6.3153]
[1721231674704,6.3138,158.39,158.33,6.3158]
[1721231674911,6.314,158.38,158.33,7.57857137]
[1721231675285,6.3143,158.37,158.32,22.1061]
[1721231676704,6.3139,158.38,158.33,6.3157]
[1721231676907,6.3139,158.38,158.34,1.26277959]
[1721231677095,6.3136,158.39,158.34,1.26277959]
[1721231677289,6.3131,158.4,158.34,7.57817959]
[1721231677795,6.3128,158.41,158.35,6.3149]
[1721231678003,6.3117,158.44,158.37,15.7851]
[1721231678308,15.7773,158.46,158.38,1.26245051]
[1721231679299,6.312,158.43,158.39,1.26233839]
[1721231679508,6.312,158.43,158.4,1.26235531]
[1721231679715,6.3116,158.44,158.4,1.26235531]
[1721231679884,34.5,158.48,158.39,6.3132]
[1721231679885,6.311,158.46,158.41,7.57503894]
[1721231680206,6.3099,158.49,158.44,6.3113]
[1721231680409,34.5,158.53,158.46,6.3107]
[1721231680601,34.5,158.53,158.45,15.7769]
[1721231680807,6.3081,158.53,158.45,15.7769]
[1721231681110,58.93991234,158.58,158.46,1.2617411]
[1721231681292,6.3083,158.52,158.46,1.2617411]
[1721231681486,6.3088,158.51,158.46,6.3106]
[1721231681691,6.3091,158.5,158.45,15.7769]
[1721231682106,15.7675,158.56,158.45,15.7769]
[1721231682309,6.3077,158.54,158.47,15.7749]
[1721231682507,6.3084,158.52,158.47,15.7749]
[1721231682814,15.7665,158.57,158.48,6.3095]
[1721231683124,34.5,158.58,158.5,6.3091]
[1721231683301,34.5,158.58,158.51,1.26150267]
[1721231683485,34.5,158.58,158.49,7.57095226]
[1721231684018,50.2658,158.58,158.44,31.6153]
[1721231684318,20.0,158.57,158.48,15.7743]
[1721231684522,20.0,158.57,158.49,1.26160744]
[1721231684809,20.0,158.57,158.46,15.7759]
[1721231685022,34.5,158.58,158.47,7.83190691]
[1721231685226,34.5,158.61,158.51,22.0801]
[1721231685398,34.5,158.61,158.52,7.56956404]
[1721231685593,6.3059,158.59,158.53,6.3077]
[1721231685901,6.3059,158.59,158.54,1.26120246]
[1721231686212,34.5,158.61,158.53,15.769]
[1721231686410,6.3056,158.59,158.53,22.0765]
[1721231686711,6.3056,158.59,158.53,15.769]
[1721231687122,6.306,158.58,158.53,15.769]
[1721231687311,34.5,158.61,158.51,6.3083]
[1721231687489,15.7631,158.6,158.49,15.7732]
[1721231687809,15.7666,158.57,158.47,6.5703]
[1721231688003,6.3079,158.54,158.47,6.5703]
[1721231688207,6.3069,158.56,158.48,17.03542031]
[1721231688406,20.0,158.55,158.52,6.3083]
[1721231688727,20.0,158.55,158.5,22.0806]
[1721231688922,34.5,158.58,158.5,22.0806]
[1721231689096,6.307,158.56,158.5,15.7719]
[1721231689297,6.3072,158.55,158.5,22.0809]
[1721231689510,6.3072,158.55,158.5,22.0807]
[1721231689705,6.3072,158.55,158.5,15.7719]
[1721231690115,50.2649,158.58,158.47,53.8978]
[1721231690320,6.3071,158.55,158.49,6.3092]
[1721231690503,6.3068,158.56,158.5,6.3088]
[1721231690702,20.0,158.57,158.49,15.7731]
[1721231690903,20.0,158.57,158.49,17.03439776]
[1721231691110,6.3069,158.56,158.51,22.08]
[1721231691511,6.3064,158.57,158.52,7.5695354]
[1721231691809,34.5,158.62,158.51,15.7713]
[1721231692415,6.3066,158.57,158.51,22.0799]
[1721231692620,6.3075,158.55,158.48,15.7746]
[1721231692919,6.3068,158.56,158.49,1.26143353]
[1721231693123,6.3068,158.56,158.51,6.3085]
[1721231693534,34.5,158.59,158.52,7.56954313]
[1721231693822,34.5,158.59,158.5,15.772]
[1721231693823,6.3071,158.56,158.5,6.309]
[1721231693996,6.3071,158.56,158.48,15.774]
[1721231694328,20.0,158.58,158.51,6.3086]
[1721231694531,6.3077,158.54,158.49,6.3091]
[1721231694746,20.0,158.58,158.47,6.5703]
[1721231694903,20.0,158.58,158.48,17.03569871]
[1721231695207,6.3072,158.55,158.5,6.3088]
[1721231695417,20.0,158.58,158.51,1.26149994]
[1721231695418,6.3075,158.54,158.51,1.26149994]
[1721231695610,6.3072,158.55,158.51,1.26149994]
[1721231695802,6.3068,158.56,158.51,6.3087]
[1721231696111,20.0,158.58,158.53,15.7694]
[1721231696427,6.3075,158.54,158.5,15.7723]
[1721231696725,6.3072,158.55,158.5,22.0813]
[1721231696899,6.308,158.53,158.48,6.3098]
[1721231697622,34.5,158.59,158.49,1.43158338]
[1721231697822,6.3067,158.56,158.52,6.308]
[1721231698119,6.3064,158.57,158.52,7.56936368]
[1721231698524,20.0,158.58,158.52,6.308]
[1721231698712,6.3067,158.56,158.51,22.0799]
[1721231699132,26.3063,158.58,158.52,6.3081]
[1721231699519,20.0,158.58,158.54,6.3074]
[1721231699827,26.306,158.58,158.55,1.2612699]
[1721231700014,20.0,158.58,158.54,6.3075]
[1721231700207,26.306,158.58,158.55,1.26120263]
[1721231700413,56.88655803,158.64,158.55,1.26118209]
[1721231700624,6.306,158.58,158.53,15.7693]
[1721231700824,6.3056,158.59,158.54,6.3075]
[1721231701515,6.306,158.58,158.54,6.3075]
[1721231701719,6.306,158.58,158.52,6.308]
[1721231701720,6.3063,158.58,158.52,6.308]
[1721231702012,6.3059,158.58,158.53,6.3078]
[1721231702230,6.3064,158.57,158.52,22.0785]
[1721231702434,6.3068,158.56,158.52,15.7703]
[1721231702728,6.3066,158.57,158.51,6.3086]
[1721231702929,6.3071,158.55,158.51,6.3086]
[1721231703228,6.3079,158.54,158.5,0.3732]
[1721231703641,50.2653,158.58,158.5,0.3732]
[1721231703642,6.3072,158.55,158.5,0.3732]
[1721231703812,40.8062,158.58,158.51,15.7711]
[1721231704119,20.0,158.57,158.51,15.7711]
[1721231704315,6.3068,158.56,158.51,22.0795]
[1721231704837,6.3059,158.59,158.53,6.3078]
[1721231705010,26.3061,158.58,158.51,15.7711]
[1721231705514,26.3061,158.58,158.53,6.3078]
[1721231705727,20.0,158.58,158.53,15.7692]
[1721231705936,6.3056,158.59,158.54,6.3075]
[1721231706140,6.304,158.63,158.58,6.3059]
[1721231706312,0.8209741,158.66,158.59,1.26081062]
[1721231706510,0.8209741,158.66,158.59,7.56601062]
[1721231706511,6.3038,158.64,158.59,7.56601062]
[1721231706729,0.8209741,158.66,158.6,6.3051]
[1721231706916,0.8209741,158.66,158.59,22.0685]
[1721231707233,0.8209741,158.66,158.6,1.26079927]
[1721231707435,0.8209741,158.66,158.61,15.7613]
[1721231707615,0.8209741,158.66,158.62,6.3039]
[1721231707818,0.8209741,158.66,158.61,15.7613]
[1721231708034,7.1237741,158.66,158.61,22.0659]
[1721231708226,0.8209741,158.66,158.61,15.7613]
[1721231708732,0.8209741,158.66,158.65,15.7579]
[1721231709029,0.8209741,158.66,158.64,6.3035]
[1721231709632,0.8209741,158.66,158.62,22.0644]
[1721231709833,0.8209741,158.66,158.63,6.3039]
[1721231710533,0.8209741,158.66,158.64,6.3034]
[1721231710833,0.8209741,158.66,158.65,7.56351745]
[1721231711031,0.8209741,158.66,158.6,45.0]
[1721231711244,0.8209741,158.66,158.58,32.1157]
[1721231711563,0.8209741,158.66,158.64,6.3034]
[1721231711746,0.8209741,158.66,158.65,6.3031]
[1721231712525,0.8209741,158.66,158.65,6.4731]
[1721231712816,0.8209741,158.66,158.65,6.6431]
[1721231713125,0.8209741,158.66,158.65,7.90331741]
[1721231713455,0.8209741,158.66,158.65,51.6431]
[1721231713936,0.8209741,158.66,158.65,52.90326556]
[1721231714121,0.8209741,158.66,158.65,58.94586556]
[1721231714723,0.8209741,158.66,158.65,57.6857]
[1721231715036,0.8209741,158.66,158.65,87.935719]
[1721231715341,0.8209741,158.66,158.65,57.6857]
[1721231715640,0.8209741,158.66,158.58,16.3511]
[1721231715816,6.3032,158.65,158.6,15.7619]
[1721231716018,0.8209741,158.66,158.61,1.26071256]
[1721231716219,0.8209741,158.66,158.58,16.3511]
[1721231716639,0.8209741,158.66,158.57,22.2596]
[1721231716824,6.3053,158.6,158.55,6.307]
[1721231717025,6.3047,158.62,158.57,6.3061]
[1721231717220,6.3039,158.64,158.58,1.2609148]
[1721231717533,26.304,158.63,158.58,7.5667148]
[1721231717728,6.3045,158.62,158.56,22.0726]
[1721231717939,20.0,158.63,158.5,0.3732]
[1721231718145,6.3065,158.57,158.53,15.7697]
[1721231718538,6.3065,158.57,158.52,6.3082]
[1721231718719,21.8865,158.62,158.5,16.1457]
[1721231718924,6.3058,158.59,158.54,6.3074]
[1721231719147,20.0,158.61,158.5,31.9171]
[1721231719337,26.3048,158.61,158.55,22.0738]
[1721231719948,20.0,158.61,158.51,15.7711]
[1721231720249,6.3078,158.54,158.5,0.3732]
[1721231720434,6.3087,158.51,158.5,0.3732]
[1721231720953,26.3087,158.51,158.5,0.3732]
[1721231722245,42.0805,158.51,158.5,0.3732]
[1721231722544,6.3107,158.46,158.4,22.0952]
[1721231722749,6.3107,158.46,158.41,6.3126]
[1721231723150,40.8102,158.48,158.42,6.3122]
[1721231723326,20.0,158.47,158.4,15.7823]
[1721231723727,20.0,158.47,158.36,41.5733]
[1721231723728,20.0,158.47,158.42,15.7801]
[1721231724043,20.0,158.48,158.43,7.57395467]
[1721231724240,26.3102,158.48,158.42,22.0923]